[Event "Early-Titled-Tuesday-Blitz-March-05-2024"]
[Site "Chess.com"]
[Date "2024.03.05"]
[Round "6"]
[White "PositionalPanther"]
[Black "sorch29"]
[Result "1/2-1/2"]
[WhiteElo "2610"]
[BlackElo "2449"]
[TimeControl "180+1"]
[EndTime "9:10:26 PST"]
[Termination "Game drawn by repetition"]

1. Nf3 {[%clk 0:03:00.9]} 1... Nf6 {[%clk 0:02:58.3]} 2. g3 {[%clk 0:03:00.8]}
2... g6 {[%clk 0:02:58]} 3. b3 {[%clk 0:03:01.4]} 3... Bg7 {[%clk 0:02:57.3]} 4.
Bb2 {[%clk 0:03:02.3]} 4... O-O {[%clk 0:02:58]} 5. Bg2 {[%clk 0:03:02.8]} 5...
d6 {[%clk 0:02:53.4]} 6. d4 {[%clk 0:03:02.3]} 6... Nbd7 {[%clk 0:02:53.1]} 7.
O-O {[%clk 0:03:01.5]} 7... e5 {[%clk 0:02:51.7]} 8. dxe5 {[%clk 0:03:01.8]}
8... Ng4 {[%clk 0:02:52.1]} 9. Qd2 {[%clk 0:03:02.4]} 9... Ndxe5 {[%clk
0:02:45.8]} 10. c4 {[%clk 0:02:53]} 10... Rb8 {[%clk 0:01:56]} 11. h3 {[%clk
0:02:35.8]} 11... Nxf3+ {[%clk 0:01:55.2]} 12. exf3 {[%clk 0:02:29]} 12... Bxb2
{[%clk 0:01:51.9]} 13. Qxb2 {[%clk 0:02:29.9]} 13... Nf6 {[%clk 0:01:40.7]} 14.
Nc3 {[%clk 0:02:28.5]} 14... Be6 {[%clk 0:01:39]} 15. Rad1 {[%clk 0:02:26.7]}
15... a6 {[%clk 0:01:34]} 16. f4 {[%clk 0:02:26.1]} 16... Nd7 {[%clk 0:01:31.1]}
17. Ne4 {[%clk 0:02:19.4]} 17... h6 {[%clk 0:01:06.7]} 18. Rfe1 {[%clk
0:02:14.4]} 18... Qe7 {[%clk 0:00:59.4]} 19. Qc3 {[%clk 0:02:05.6]} 19... Rfe8
{[%clk 0:00:33.5]} 20. g4 {[%clk 0:01:55.8]} 20... Qf8 {[%clk 0:00:32]} 21. Nf6+
{[%clk 0:01:46.8]} 21... Nxf6 {[%clk 0:00:31.5]} 22. Qxf6 {[%clk 0:01:47.7]}
22... Qg7 {[%clk 0:00:30.8]} 23. Qh4 {[%clk 0:01:15.2]} 23... b5 {[%clk
0:00:22.8]} 24. cxb5 {[%clk 0:01:12.1]} 24... axb5 {[%clk 0:00:22.9]} 25. Re3
{[%clk 0:01:07.2]} 25... g5 {[%clk 0:00:20]} 26. Qg3 {[%clk 0:01:03.8]} 26...
Bd7 {[%clk 0:00:17.6]} 27. Rde1 {[%clk 0:01:01.3]} 27... Rxe3 {[%clk 0:00:17.3]}
28. Rxe3 {[%clk 0:00:55.3]} 28... Re8 {[%clk 0:00:17.6]} 29. Rxe8+ {[%clk
0:00:54.1]} 29... Bxe8 {[%clk 0:00:18.5]} 30. Qe3 {[%clk 0:00:51.7]} 30... Kf8
{[%clk 0:00:17.2]} 31. fxg5 {[%clk 0:00:51.3]} 31... hxg5 {[%clk 0:00:17]} 32.
Qc1 {[%clk 0:00:45.3]} 32... c5 {[%clk 0:00:16]} 33. Kh1 {[%clk 0:00:40.3]}
33... Qe5 {[%clk 0:00:16.1]} 34. Qd2 {[%clk 0:00:37.9]} 34... b4 {[%clk
0:00:16.1]} 35. Bd5 {[%clk 0:00:34.4]} 35... Ke7 {[%clk 0:00:15.7]} 36. Kg2
{[%clk 0:00:31.2]} 36... f6 {[%clk 0:00:15.4]} 37. Qd3 {[%clk 0:00:24]} 37...
Bf7 {[%clk 0:00:14.1]} 38. Bxf7 {[%clk 0:00:18.7]} 38... Kxf7 {[%clk 0:00:15]}
39. Qh7+ {[%clk 0:00:19.1]} 39... Ke6 {[%clk 0:00:15.3]} 40. Qg8+ {[%clk
0:00:19.5]} 40... Kd7 {[%clk 0:00:15.8]} 41. Qf7+ {[%clk 0:00:19.6]} 41... Kd8
{[%clk 0:00:16.3]} 42. Qa7 {[%clk 0:00:19.2]} 42... Ke8 {[%clk 0:00:14.9]} 43.
Qb8+ {[%clk 0:00:18.8]} 43... Ke7 {[%clk 0:00:14.9]} 44. Qc7+ {[%clk 0:00:19.1]}
44... Ke6 {[%clk 0:00:15.2]} 45. Qc8+ {[%clk 0:00:19.5]} 45... Kd5 {[%clk
0:00:15.6]} 46. Qa8+ {[%clk 0:00:14.7]} 46... Kd4 {[%clk 0:00:15.6]} 47. a4
{[%clk 0:00:14.8]} 47... bxa3 {[%clk 0:00:15.3]} 48. Qxa3 {[%clk 0:00:14.7]}
48... Kc3 {[%clk 0:00:14.2]} 49. b4+ {[%clk 0:00:14]} 49... Kc4 {[%clk
0:00:11.6]} 50. bxc5 {[%clk 0:00:14.3]} 50... dxc5 {[%clk 0:00:11.6]} 51. Qa2+
{[%clk 0:00:14.4]} 51... Kd4 {[%clk 0:00:11.6]} 52. Qd2+ {[%clk 0:00:15]} 52...
Ke4 {[%clk 0:00:11.3]} 53. Qc2+ {[%clk 0:00:15.2]} 53... Kd5 {[%clk 0:00:11.5]}
54. Qb3+ {[%clk 0:00:14.6]} 54... c4 {[%clk 0:00:10.9]} 55. Qb7+ {[%clk
0:00:15.1]} 55... Kd4 {[%clk 0:00:11.2]} 56. Qb6+ {[%clk 0:00:15]} 56... Kd3
{[%clk 0:00:11.3]} 57. Kf1 {[%clk 0:00:13]} 57... c3 {[%clk 0:00:10.2]} 58. Qb3
{[%clk 0:00:11.4]} 58... Qe2+ {[%clk 0:00:08.5]} 59. Kg2 {[%clk 0:00:11.6]}
59... Qe4+ {[%clk 0:00:09]} 60. f3 {[%clk 0:00:11.1]} 60... Qe2+ {[%clk
0:00:08.6]} 61. Kg3 {[%clk 0:00:11.2]} 61... Qe5+ {[%clk 0:00:09]} 62. Kg2
{[%clk 0:00:11.5]} 62... Kd2 {[%clk 0:00:09.2]} 63. Qb4 {[%clk 0:00:09.7]} 63...
Ke2 {[%clk 0:00:07.9]} 64. Qc4+ {[%clk 0:00:09.4]} 64... Kd2 {[%clk 0:00:06.2]}
65. Qb4 {[%clk 0:00:09.9]} 65... Kd1 {[%clk 0:00:05.5]} 66. Qb1+ {[%clk
0:00:06]} 66... Kd2 {[%clk 0:00:05.8]} 67. Qb4 {[%clk 0:00:06.2]} 1/2-1/2

[Event "Early-Titled-Tuesday-Blitz-March-05-2024"]
[Site "Chess.com"]
[Date "2024.03.05"]
[Round "6"]
[White "RandomNoob04"]
[Black "Nuvas"]
[Result "1/2-1/2"]
[WhiteElo "2603"]
[BlackElo "2809"]
[TimeControl "180+1"]
[EndTime "9:10:36 PST"]
[Termination "Game drawn - insufficient material"]

1. e4 {[%clk 0:03:00.9]} 1... e5 {[%clk 0:03:00.1]} 2. d4 {[%clk 0:03:01.2]}
2... exd4 {[%clk 0:03:00.2]} 3. Qxd4 {[%clk 0:03:02.1]} 3... Nc6 {[%clk
0:03:00.3]} 4. Qe3 {[%clk 0:03:02.8]} 4... Bb4+ {[%clk 0:02:59.4]} 5. c3 {[%clk
0:03:02.1]} 5... Ba5 {[%clk 0:02:56.7]} 6. Nf3 {[%clk 0:02:58.6]} 6... Nge7
{[%clk 0:02:46]} 7. Bc4 {[%clk 0:02:57.3]} 7... O-O {[%clk 0:02:42.8]} 8. O-O
{[%clk 0:02:55.9]} 8... Bb6 {[%clk 0:02:34.2]} 9. Qe2 {[%clk 0:02:55.9]} 9... d6
{[%clk 0:02:33.9]} 10. h3 {[%clk 0:02:51.8]} 10... Ng6 {[%clk 0:02:34.1]} 11.
Bg5 {[%clk 0:02:50.8]} 11... Qe8 {[%clk 0:02:32.3]} 12. Nbd2 {[%clk 0:02:48.7]}
12... Be6 {[%clk 0:02:32.2]} 13. Bb5 {[%clk 0:02:48]} 13... f6 {[%clk
0:02:28.2]} 14. Be3 {[%clk 0:02:46.9]} 14... Nge5 {[%clk 0:02:26.5]} 15. Bxb6
{[%clk 0:02:39.2]} 15... axb6 {[%clk 0:02:25.5]} 16. Nd4 {[%clk 0:02:37.9]}
16... Bd7 {[%clk 0:02:25.7]} 17. Nxc6 {[%clk 0:02:23.5]} 17... bxc6 {[%clk
0:02:25.6]} 18. Bd3 {[%clk 0:02:22.9]} 18... Qg6 {[%clk 0:02:16.2]} 19. Kh1
{[%clk 0:02:13.4]} 19... Rfe8 {[%clk 0:02:08.1]} 20. Bc2 {[%clk 0:02:12.7]}
20... Qh6 {[%clk 0:01:50.6]} 21. f4 {[%clk 0:02:09.1]} 21... Ng6 {[%clk
0:01:50.7]} 22. Qf2 {[%clk 0:02:07.2]} 22... b5 {[%clk 0:01:40.9]} 23. Rad1
{[%clk 0:02:05]} 23... Kh8 {[%clk 0:01:40.3]} 24. a3 {[%clk 0:02:04.9]} 24... c5
{[%clk 0:01:37]} 25. e5 {[%clk 0:01:30.9]} 25... fxe5 {[%clk 0:01:31.3]} 26.
Bxg6 {[%clk 0:01:31.4]} 26... Qxg6 {[%clk 0:01:31]} 27. fxe5 {[%clk 0:01:31.6]}
27... Bc6 {[%clk 0:01:08.2]} 28. Nf3 {[%clk 0:01:31.2]} 28... Bxf3 {[%clk
0:00:59.4]} 29. Qxf3 {[%clk 0:01:30.3]} 29... dxe5 {[%clk 0:01:00.1]} 30. Rd5
{[%clk 0:01:15.7]} 30... e4 {[%clk 0:00:55.1]} 31. Qe3 {[%clk 0:01:15.5]} 31...
b4 {[%clk 0:00:53.2]} 32. Qxc5 {[%clk 0:01:08.9]} 32... bxa3 {[%clk 0:00:49.7]}
33. bxa3 {[%clk 0:01:09.8]} 33... h6 {[%clk 0:00:47.1]} 34. Qe3 {[%clk
0:00:48.9]} 34... Rxa3 {[%clk 0:00:44.5]} 35. Rd7 {[%clk 0:00:48.8]} 35... Ra2
{[%clk 0:00:41.2]} 36. g4 {[%clk 0:00:40.7]} 36... Qe6 {[%clk 0:00:20]} 37. Qd4
{[%clk 0:00:32]} 37... Qe5 {[%clk 0:00:20.1]} 38. Rf8+ {[%clk 0:00:27.3]} 38...
Kh7 {[%clk 0:00:20.1]} 39. Qxe5 {[%clk 0:00:14.6]} 39... Rxe5 {[%clk 0:00:21]}
40. Rff7 {[%clk 0:00:15.3]} 40... e3 {[%clk 0:00:18]} 41. Rxg7+ {[%clk
0:00:14.7]} 41... Kh8 {[%clk 0:00:18.5]} 42. Rh7+ {[%clk 0:00:12.5]} 42... Kg8
{[%clk 0:00:18.8]} 43. Rdg7+ {[%clk 0:00:13.1]} 43... Kf8 {[%clk 0:00:19.3]} 44.
Rxc7 {[%clk 0:00:13.7]} 44... Kg8 {[%clk 0:00:14.1]} 45. Rcg7+ {[%clk
0:00:11.5]} 45... Kf8 {[%clk 0:00:14.5]} 46. Rb7 {[%clk 0:00:12.1]} 46... Kg8
{[%clk 0:00:10.5]} 47. Rhe7 {[%clk 0:00:03.5]} 47... Rxe7 {[%clk 0:00:06.3]} 48.
Rxe7 {[%clk 0:00:04.4]} 48... e2 {[%clk 0:00:07]} 49. Kg1 {[%clk 0:00:04.9]}
49... Rc2 {[%clk 0:00:06.1]} 50. Kf2 {[%clk 0:00:04.7]} 50... Rxc3 {[%clk
0:00:06.7]} 51. Rxe2 {[%clk 0:00:04.9]} 51... Rxh3 {[%clk 0:00:06.8]} 52. Kg2
{[%clk 0:00:05.5]} 52... Rb3 {[%clk 0:00:07]} 53. Rf2 {[%clk 0:00:05.3]} 53...
Kg7 {[%clk 0:00:07.5]} 54. Rf3 {[%clk 0:00:05.7]} 54... Rb4 {[%clk 0:00:08.2]}
55. Kg3 {[%clk 0:00:06.1]} 55... Kg6 {[%clk 0:00:09]} 56. Rc3 {[%clk 0:00:05.9]}
56... Rb6 {[%clk 0:00:09.8]} 57. Rc5 {[%clk 0:00:05.7]} 57... Rb3+ {[%clk
0:00:09.8]} 58. Kh4 {[%clk 0:00:06.1]} 58... Rb6 {[%clk 0:00:10.5]} 59. Rd5
{[%clk 0:00:06.2]} 59... Ra6 {[%clk 0:00:10.9]} 60. Rb5 {[%clk 0:00:06.5]} 60...
Rd6 {[%clk 0:00:11.6]} 61. Rc5 {[%clk 0:00:06.8]} 61... Rf6 {[%clk 0:00:12.2]}
62. Rb5 {[%clk 0:00:06.8]} 62... Rf1 {[%clk 0:00:12.9]} 63. Rb6+ {[%clk
0:00:07]} 63... Kg7 {[%clk 0:00:13.5]} 64. Ra6 {[%clk 0:00:07.1]} 64... Rf2
{[%clk 0:00:12.6]} 65. Kg3 {[%clk 0:00:07.2]} 65... Rc2 {[%clk 0:00:12.4]} 66.
Kh4 {[%clk 0:00:07.4]} 66... Rc4 {[%clk 0:00:12.4]} 67. Kh5 {[%clk 0:00:07.2]}
67... Rc5+ {[%clk 0:00:12.7]} 68. Kh4 {[%clk 0:00:07.7]} 68... Rg5 {[%clk
0:00:13.1]} 69. Ra7+ {[%clk 0:00:07.1]} 69... Kh8 {[%clk 0:00:11.8]} 70. Ra6
{[%clk 0:00:08]} 70... Kh7 {[%clk 0:00:12.2]} 71. Ra7+ {[%clk 0:00:08.2]} 71...
Rg7 {[%clk 0:00:12.8]} 72. Rxg7+ {[%clk 0:00:08.5]} 72... Kxg7 {[%clk
0:00:13.7]} 73. Kh5 {[%clk 0:00:09.1]} 73... Kh7 {[%clk 0:00:14]} 74. g5 {[%clk
0:00:09.8]} 74... hxg5 {[%clk 0:00:14.9]} 75. Kxg5 {[%clk 0:00:10.7]} 1/2-1/2

[Event "Early-Titled-Tuesday-Blitz-March-05-2024"]
[Site "Chess.com"]
[Date "2024.03.05"]
[Round "6"]
[White "yonaltimur"]
[Black "noblerone"]
[Result "1/2-1/2"]
[WhiteElo "2360"]
[BlackElo "2513"]
[TimeControl "180+1"]
[EndTime "9:10:37 PST"]
[Termination "Game drawn by repetition"]

1. e4 {[%clk 0:03:00.9]} 1... d5 {[%clk 0:02:53.1]} 2. exd5 {[%clk 0:03:00.8]}
2... Qxd5 {[%clk 0:02:54]} 3. Nc3 {[%clk 0:03:00.7]} 3... Qd8 {[%clk 0:02:53.6]}
4. d4 {[%clk 0:03:00.1]} 4... Nf6 {[%clk 0:02:54]} 5. Be2 {[%clk 0:02:51.1]}
5... Bf5 {[%clk 0:02:51.3]} 6. Be3 {[%clk 0:02:49.8]} 6... e6 {[%clk 0:02:48.6]}
7. Nf3 {[%clk 0:02:50.1]} 7... c6 {[%clk 0:02:48.3]} 8. O-O {[%clk 0:02:50.4]}
8... Bd6 {[%clk 0:02:43.7]} 9. Qd2 {[%clk 0:02:49.9]} 9... O-O {[%clk
0:02:42.7]} 10. Bf4 {[%clk 0:02:50]} 10... Bxf4 {[%clk 0:02:37.6]} 11. Qxf4
{[%clk 0:02:49.6]} 11... Bxc2 {[%clk 0:02:38.3]} 12. Rac1 {[%clk 0:02:30.5]}
12... Bg6 {[%clk 0:02:30.3]} 13. Rfd1 {[%clk 0:02:29.9]} 13... Nbd7 {[%clk
0:02:27.2]} 14. Ne5 {[%clk 0:02:29.3]} 14... Nxe5 {[%clk 0:02:24.5]} 15. dxe5
{[%clk 0:02:22]} 15... Nd5 {[%clk 0:02:24.3]} 16. Qf3 {[%clk 0:02:22.3]} 16...
Qb6 {[%clk 0:02:21]} 17. Na4 {[%clk 0:02:18.3]} 17... Qa5 {[%clk 0:02:11.7]} 18.
b3 {[%clk 0:02:16.8]} 18... Rfd8 {[%clk 0:02:04]} 19. Rc5 {[%clk 0:02:13.7]}
19... Qc7 {[%clk 0:02:01.9]} 20. Rcc1 {[%clk 0:02:01.4]} 20... Qxe5 {[%clk
0:01:54.8]} 21. Nc5 {[%clk 0:01:59.6]} 21... Rab8 {[%clk 0:01:52.4]} 22. h4
{[%clk 0:01:53.7]} 22... h5 {[%clk 0:01:32.8]} 23. g3 {[%clk 0:01:52.9]} 23...
b6 {[%clk 0:01:13.4]} 24. Nd3 {[%clk 0:01:46.3]} 24... Bxd3 {[%clk 0:01:07.9]}
25. Bxd3 {[%clk 0:01:46.2]} 25... c5 {[%clk 0:01:00.5]} 26. Bb1 {[%clk
0:01:44.2]} 26... g6 {[%clk 0:00:59.1]} 27. Re1 {[%clk 0:01:43.9]} 27... Qf6
{[%clk 0:00:57.5]} 28. Qe4 {[%clk 0:01:35.9]} 28... Nb4 {[%clk 0:00:52.5]} 29.
a3 {[%clk 0:01:27.2]} 29... Nd5 {[%clk 0:00:52.3]} 30. Qc2 {[%clk 0:01:23.6]}
30... Rd6 {[%clk 0:00:49.8]} 31. Rcd1 {[%clk 0:01:22.9]} 31... Rbd8 {[%clk
0:00:49.6]} 32. Qc1 {[%clk 0:00:44]} 32... Nc3 {[%clk 0:00:45.3]} 33. Rxd6
{[%clk 0:00:42.6]} 33... Rxd6 {[%clk 0:00:45.8]} 34. Bc2 {[%clk 0:00:43.1]}
34... Kg7 {[%clk 0:00:36.7]} 35. Re3 {[%clk 0:00:37.8]} 35... Nd5 {[%clk
0:00:32.6]} 36. Re1 {[%clk 0:00:37.6]} 36... Qc3 {[%clk 0:00:30.7]} 37. Rd1
{[%clk 0:00:37.9]} 37... Rd7 {[%clk 0:00:29.3]} 38. Rd2 {[%clk 0:00:30]} 38...
Nf6 {[%clk 0:00:27.2]} 39. Rxd7 {[%clk 0:00:29.5]} 39... Nxd7 {[%clk 0:00:28.1]}
40. Qd1 {[%clk 0:00:30.1]} 40... Nf6 {[%clk 0:00:27.5]} 41. Qe2 {[%clk 0:00:28]}
41... Qa1+ {[%clk 0:00:25.9]} 42. Kg2 {[%clk 0:00:27.6]} 42... Qd4 {[%clk
0:00:26.8]} 43. a4 {[%clk 0:00:26.6]} 43... Ng4 {[%clk 0:00:26.1]} 44. Qf3
{[%clk 0:00:18.8]} 44... Ne5 {[%clk 0:00:20.9]} 45. Qb7 {[%clk 0:00:16.7]} 45...
Qd5+ {[%clk 0:00:21]} 46. Be4 {[%clk 0:00:15.3]} 46... Qxb7 {[%clk 0:00:20.7]}
47. Bxb7 {[%clk 0:00:16.2]} 47... Kf6 {[%clk 0:00:21.1]} 48. f4 {[%clk
0:00:16.6]} 48... Ng4 {[%clk 0:00:20.3]} 49. Kf3 {[%clk 0:00:16.7]} 49... Ke7
{[%clk 0:00:20.2]} 50. Ke4 {[%clk 0:00:16.9]} 50... Nf6+ {[%clk 0:00:20.7]} 51.
Kd3 {[%clk 0:00:16.4]} 51... Kd6 {[%clk 0:00:20.2]} 52. Ba6 {[%clk 0:00:16]}
52... Nd5 {[%clk 0:00:20.2]} 53. Bc4 {[%clk 0:00:15.3]} 53... Nb4+ {[%clk
0:00:19.9]} 54. Ke4 {[%clk 0:00:15.6]} 54... f6 {[%clk 0:00:19.3]} 55. Ke3
{[%clk 0:00:15.3]} 55... f5 {[%clk 0:00:19.7]} 56. Kf3 {[%clk 0:00:12.7]} 56...
Nc6 {[%clk 0:00:17.6]} 57. Ke3 {[%clk 0:00:12.4]} 57... Nd4 {[%clk 0:00:17.5]}
58. Kd3 {[%clk 0:00:11.1]} 58... Nc6 {[%clk 0:00:14]} 59. Ke3 {[%clk 0:00:11.1]}
59... Na5 {[%clk 0:00:13.9]} 60. Bb5 {[%clk 0:00:09.5]} 60... Nxb3 {[%clk
0:00:13.7]} 61. Be8 {[%clk 0:00:09.4]} 61... c4 {[%clk 0:00:12.7]} 62. Bxg6
{[%clk 0:00:09.2]} 62... Nc5 {[%clk 0:00:11.4]} 63. Kd4 {[%clk 0:00:09.6]} 63...
Nxa4 {[%clk 0:00:10.7]} 64. Kxc4 {[%clk 0:00:10.1]} 64... Ke7 {[%clk 0:00:10.2]}
65. Bxh5 {[%clk 0:00:10.4]} 65... Kf6 {[%clk 0:00:11]} 66. Bf3 {[%clk
0:00:10.2]} 66... Nc5 {[%clk 0:00:11.9]} 67. Bc6 {[%clk 0:00:09.9]} 67... Ne4
{[%clk 0:00:10.5]} 68. Bxe4 {[%clk 0:00:07.1]} 68... fxe4 {[%clk 0:00:11.4]} 69.
Kd4 {[%clk 0:00:07.7]} 69... Kf5 {[%clk 0:00:11.2]} 70. h5 {[%clk 0:00:07.5]}
70... a5 {[%clk 0:00:10.6]} 71. g4+ {[%clk 0:00:07.3]} 71... Kf6 {[%clk
0:00:10.1]} 72. Kxe4 {[%clk 0:00:07.7]} 72... a4 {[%clk 0:00:10.1]} 73. Kd3
{[%clk 0:00:08.1]} 73... b5 {[%clk 0:00:10.5]} 74. Kc3 {[%clk 0:00:08.5]} 74...
Kf7 {[%clk 0:00:09.6]} 75. h6 {[%clk 0:00:08.3]} 75... Kg6 {[%clk 0:00:10]} 76.
g5 {[%clk 0:00:08.8]} 76... Kh7 {[%clk 0:00:10.4]} 77. Kb4 {[%clk 0:00:08.9]}
77... Kg6 {[%clk 0:00:10.4]} 78. Ka3 {[%clk 0:00:09.3]} 78... Kh7 {[%clk
0:00:10.6]} 79. Kb4 {[%clk 0:00:09.8]} 79... Kg6 {[%clk 0:00:11.2]} 80. Ka3
{[%clk 0:00:10.3]} 80... Kh7 {[%clk 0:00:11.8]} 81. Kb4 {[%clk 0:00:10.8]}
1/2-1/2

[Event "Early-Titled-Tuesday-Blitz-March-05-2024"]
[Site "Chess.com"]
[Date "2024.03.05"]
[Round "6"]
[White "SchmakAttack"]
[Black "Kunalm64"]
[Result "1-0"]
[WhiteElo "2812"]
[BlackElo "2621"]
[TimeControl "180+1"]
[EndTime "9:10:44 PST"]
[Termination "SchmakAttack won by resignation"]

1. c4 {[%clk 0:03:00.9]} 1... Nf6 {[%clk 0:02:58.3]} 2. Nc3 {[%clk 0:02:59.9]}
2... e5 {[%clk 0:02:58.2]} 3. Nf3 {[%clk 0:02:56.8]} 3... Nc6 {[%clk 0:02:57.7]}
4. d3 {[%clk 0:02:53.8]} 4... Bb4 {[%clk 0:02:56.3]} 5. Bd2 {[%clk 0:02:53.2]}
5... O-O {[%clk 0:02:56]} 6. g3 {[%clk 0:02:46.8]} 6... Re8 {[%clk 0:02:54.6]}
7. Bg2 {[%clk 0:02:46.6]} 7... Bxc3 {[%clk 0:02:49.3]} 8. Bxc3 {[%clk
0:02:46.7]} 8... d5 {[%clk 0:02:46.7]} 9. cxd5 {[%clk 0:02:45.8]} 9... Nxd5
{[%clk 0:02:46.1]} 10. Rc1 {[%clk 0:02:34.3]} 10... Nxc3 {[%clk 0:02:44]} 11.
Rxc3 {[%clk 0:02:35.2]} 11... Bg4 {[%clk 0:02:28.2]} 12. O-O {[%clk 0:02:28.7]}
12... Qd7 {[%clk 0:02:27.7]} 13. Qa4 {[%clk 0:02:17.3]} 13... Bh3 {[%clk
0:02:04.3]} 14. Rfc1 {[%clk 0:02:03.4]} 14... Bxg2 {[%clk 0:02:01]} 15. Kxg2
{[%clk 0:02:04.3]} 15... Re6 {[%clk 0:01:44.5]} 16. Qb5 {[%clk 0:01:40.9]} 16...
Qc8 {[%clk 0:01:11.6]} 17. b4 {[%clk 0:01:32.5]} 17... a6 {[%clk 0:01:11.3]} 18.
Qc4 {[%clk 0:01:28.3]} 18... Qd7 {[%clk 0:01:09.9]} 19. a4 {[%clk 0:01:27.6]}
19... h6 {[%clk 0:00:57.6]} 20. Qe4 {[%clk 0:01:11.4]} 20... Nd4 {[%clk
0:00:14.7]} 21. Qxb7 {[%clk 0:00:48.9]} 21... Rf8 {[%clk 0:00:13.8]} 22. Rxc7
{[%clk 0:00:45.2]} 22... Qxa4 {[%clk 0:00:13.8]} 23. Nxd4 {[%clk 0:00:20.3]}
23... exd4 {[%clk 0:00:13.9]} 24. Re7 {[%clk 0:00:21]} 24... Rxe7 {[%clk
0:00:10.5]} 25. Qxe7 {[%clk 0:00:21.9]} 25... Qb5 {[%clk 0:00:08.9]} 26. Rc7
{[%clk 0:00:18.2]} 26... Qd5+ {[%clk 0:00:08.2]} 27. Qe4 {[%clk 0:00:17.4]}
27... Qxe4+ {[%clk 0:00:08]} 28. dxe4 {[%clk 0:00:18.3]} 28... Re8 {[%clk
0:00:07]} 29. Kf3 {[%clk 0:00:16.4]} 29... Rd8 {[%clk 0:00:06.9]} 30. Rc6 {[%clk
0:00:14.8]} 30... d3 {[%clk 0:00:07.3]} 31. exd3 {[%clk 0:00:14.7]} 31... Rxd3+
{[%clk 0:00:08]} 32. Ke2 {[%clk 0:00:14.2]} 32... Rb3 {[%clk 0:00:08.4]} 33.
Rxa6 {[%clk 0:00:10.9]} 33... Rxb4 {[%clk 0:00:08.3]} 34. Ke3 {[%clk 0:00:11.4]}
34... h5 {[%clk 0:00:08]} 35. h4 {[%clk 0:00:11.2]} 35... Rb3+ {[%clk
0:00:07.7]} 36. Kf4 {[%clk 0:00:11.6]} 36... Rb2 {[%clk 0:00:08]} 37. f3 {[%clk
0:00:12]} 37... g6 {[%clk 0:00:08.3]} 38. Ra7 {[%clk 0:00:05.6]} 38... Kg7
{[%clk 0:00:08.2]} 39. e5 {[%clk 0:00:05.8]} 39... Re2 {[%clk 0:00:08.3]} 40.
Rb7 {[%clk 0:00:05.6]} 40... Re1 {[%clk 0:00:08.3]} 41. Rb2 {[%clk 0:00:04.8]}
41... Rd1 {[%clk 0:00:07.9]} 42. Re2 {[%clk 0:00:05.4]} 42... Rd4+ {[%clk
0:00:07.7]} 43. Re4 {[%clk 0:00:06.2]} 43... Rd2 {[%clk 0:00:07.6]} 44. e6
{[%clk 0:00:06.3]} 44... fxe6 {[%clk 0:00:07.9]} 45. Rxe6 {[%clk 0:00:07.2]}
45... Kf7 {[%clk 0:00:08.2]} 46. Re4 {[%clk 0:00:07.2]} 46... Kf6 {[%clk
0:00:08.4]} 47. Ra4 {[%clk 0:00:07.2]} 47... Rb2 {[%clk 0:00:07.4]} 48. Ra6+
{[%clk 0:00:07.2]} 48... Kg7 {[%clk 0:00:06.9]} 49. Re6 {[%clk 0:00:07.1]} 49...
Kf7 {[%clk 0:00:06.5]} 50. Rd6 {[%clk 0:00:06.6]} 50... Kg7 {[%clk 0:00:06.8]}
51. g4 {[%clk 0:00:04.1]} 51... hxg4 {[%clk 0:00:06.7]} 52. fxg4 {[%clk
0:00:05]} 52... Rb4+ {[%clk 0:00:06.8]} 53. Kf3 {[%clk 0:00:05.7]} 53... Rb3+
{[%clk 0:00:07.2]} 54. Kf4 {[%clk 0:00:05.7]} 54... Rb4+ {[%clk 0:00:07.6]} 55.
Kf3 {[%clk 0:00:06.1]} 55... Rb3+ {[%clk 0:00:08.1]} 56. Ke4 {[%clk 0:00:06.8]}
56... Rb4+ {[%clk 0:00:08.3]} 57. Rd4 {[%clk 0:00:06.7]} 57... Rb3 {[%clk
0:00:08]} 58. Kf4 {[%clk 0:00:07.3]} 58... Rb5 {[%clk 0:00:07.8]} 59. Re4 {[%clk
0:00:06.4]} 59... g5+ {[%clk 0:00:07.9]} 60. hxg5 {[%clk 0:00:04.3]} 60... Kg6
{[%clk 0:00:08.4]} 61. Re6+ {[%clk 0:00:04.7]} 61... Kg7 {[%clk 0:00:08.7]} 62.
Re5 {[%clk 0:00:05]} 62... Rb4+ {[%clk 0:00:08.1]} 63. Kf5 {[%clk 0:00:05.5]}
63... Rb1 {[%clk 0:00:08.1]} 64. Re7+ {[%clk 0:00:05.8]} 64... Kg8 {[%clk
0:00:08.2]} 65. Kf6 {[%clk 0:00:04.7]} 65... Rb6+ {[%clk 0:00:07.8]} 66. Re6
{[%clk 0:00:05]} 66... Rb4 {[%clk 0:00:05.9]} 67. Kg6 {[%clk 0:00:04.9]} 67...
Kf8 {[%clk 0:00:05.7]} 68. Rf6+ {[%clk 0:00:05.2]} 68... Kg8 {[%clk 0:00:05.1]}
69. Rc6 {[%clk 0:00:05.9]} 69... Kf8 {[%clk 0:00:04.4]} 70. Rc8+ {[%clk
0:00:06.3]} 70... Ke7 {[%clk 0:00:04.4]} 71. Kg7 {[%clk 0:00:06.7]} 71... Rxg4
{[%clk 0:00:03.9]} 72. g6 {[%clk 0:00:07.4]} 72... Rg1 {[%clk 0:00:04]} 73. Rc2
{[%clk 0:00:07.5]} 73... Ke6 {[%clk 0:00:04.2]} 74. Re2+ {[%clk 0:00:06.6]}
74... Kf5 {[%clk 0:00:04.2]} 75. Kf7 {[%clk 0:00:06.9]} 1-0